fUSD/lending_fUSD_20240115
["ID","MTS","AMOUNT","RATE_DAILY","PERIOD"]
[311667422,1705299050583,-570.88124635,0.00027397,2]
[311667423,1705299050593,-532.9,0.00027397,2]
[311667424,1705299050602,-900.25,0.00027397,2]
[311667425,1705299050611,-507.76943613,0.00027397,2]
[311667426,1705299050620,-500.0,0.00027397,2]
[311667427,1705299050629,-505.80477998,0.00027397,2]
[311667428,1705299050638,-507.17847322,0.00027397,2]
[311667429,1705299050648,-500.0,0.00027397,2]
[311667430,1705299050658,-500.0,0.00027397,2]
[311667431,1705299050667,-500.0,0.00027397,2]
[311667432,1705299050676,-500.0,0.00027397,2]
[311667433,1705299050685,-504.98485972,0.00027397,2]
[311667434,1705299050694,-500.0,0.00027397,2]
[311667435,1705299050703,-620.77,0.00027397,2]
[311667436,1705299050713,-499.17789926,0.00027397,2]
[311667437,1705299050722,-500.0,0.00027397,2]
[311667438,1705299050732,-820.25,0.00027397,2]
[311667439,1705299050742,-500.0,0.00027397,2]
[311667440,1705299050751,-5377.38,0.00027397,2]
[311667441,1705299050760,-500.0,0.00027397,2]
[311667442,1705299050770,-1019.53222955,0.00027397,2]
[311667443,1705299050779,-500.0,0.00027397,2]
[311667444,1705299050788,-578.62,0.00027397,2]
[311667445,1705299050797,-500.0,0.00027397,2]
[311667446,1705299050807,-500.0,0.00027397,2]
[311667447,1705299050816,-500.0,0.00027397,2]
[311667448,1705299050825,-548.43528822,0.00027397,7]
[311667449,1705299050834,-500.0,0.00027397,2]
[311667450,1705299050843,-500.0,0.00027397,2]
[311667451,1705299050853,-500.0,0.00027397,2]
[311667452,1705299050862,-500.0,0.00027397,2]
[311667453,1705299050871,-500.0,0.00027397,2]
[311667454,1705299050880,-605.48978616,0.00027397,2]
[311667455,1705299050889,-973.71,0.00027397,2]
[311667456,1705299050898,-500.0,0.00027397,2]
[311667457,1705299050912,-531.87,0.00027397,2]
[311667458,1705299050921,-675.91,0.00027397,2]
[311667459,1705299050930,-501.76172167,0.00027397,2]
[311667460,1705299050939,-500.0,0.00027397,2]
[311667461,1705299050950,-500.0,0.00027397,2]
[311667462,1705299050959,-500.0,0.00027397,2]
[311667463,1705299050968,-500.0,0.00027397,2]
[311667464,1705299050978,-1329.63,0.00027397,2]
[311667465,1705299050989,-527.23,0.00027397,2]
[311667466,1705299050998,-500.0,0.00027397,2]
[311667467,1705299051007,-500.0,0.00027397,2]
[311667468,1705299051016,-500.0,0.00027397,2]
[311667469,1705299051025,-500.0,0.00027397,2]
[311667470,1705299051035,-504.64529901,0.00027397,2]
[311667471,1705299051045,-500.0,0.00027397,2]
[311667472,1705299051054,-500.0,0.00027397,2]
[311667473,1705299051063,-501.36646014,0.00027397,2]
[311667474,1705299051072,-500.0,0.00027397,2]
[311667475,1705299051081,-500.0,0.00027397,2]
[311667476,1705299051091,-500.0,0.00027397,2]
[311667477,1705299051100,-533.98,0.00027397,2]
[311667478,1705299051109,-503.47442223,0.00027397,2]
[311667479,1705299051118,-642.62,0.00027397,2]
[311667480,1705299051128,-500.0,0.00027397,2]
[311667481,1705299051136,-500.0,0.00027397,2]
[311667482,1705299051145,-500.0,0.00027397,2]
[311667483,1705299051155,-500.0,0.00027397,2]
[311667484,1705299051164,-588.6,0.00027397,2]
[311667485,1705299051173,-500.0,0.00027397,2]
[311667486,1705299051182,-588.69076797,0.00027397,2]
[311667487,1705299051191,-500.0,0.00027397,2]
[311667488,1705299051200,-500.0,0.00027397,2]
[311667489,1705299051209,-500.0,0.00027397,2]
[311667490,1705299051218,-500.0,0.00027397,2]
[311667491,1705299051228,-500.0,0.00027397,2]
[311667492,1705299051237,-500.0,0.00027397,2]
[311667493,1705299051246,-500.0,0.00027397,2]
[311667494,1705299051256,-500.0,0.00027397,2]
[311667495,1705299051265,-500.0,0.00027397,2]
[311667496,1705299051275,-500.0,0.00027397,2]
[311667497,1705299051284,-500.0,0.00027397,2]
[311667498,1705299051293,-508.85168021,0.00027397,2]
[311667499,1705299051303,-500.0,0.00027397,2]
[311667500,1705299051312,-502.84215303,0.00027397,2]
[311667501,1705299051322,-1220.17,0.00027397,2]
[311667502,1705299051331,-500.0,0.00027397,2]
[311667503,1705299051340,-500.0,0.00027397,2]
[311667504,1705299051350,-500.0,0.00027397,2]
[311667505,1705299051359,-500.0,0.00027397,2]
[311667506,1705299051368,-597.92,0.00027397,2]
[311667507,1705299051377,-500.0,0.00027397,2]
[311667508,1705299051387,-760.21,0.00027397,2]
[311667509,1705299051395,-156.97987707,0.00027397,2]
[311667510,1705299051405,-503.52394689,0.00027397,2]
[311667511,1705299051415,-500.0,0.00027397,2]
[311667512,1705299051424,-500.0,0.00027397,2]
[311667513,1705299051434,-500.0,0.00027397,2]
[311667514,1705299051443,-500.0,0.00027397,2]
[311667515,1705299051453,-500.0,0.00027397,2]
[311667516,1705299051463,-500.0,0.00027397,2]
[311667517,1705299051472,-500.0,0.00027397,2]
[311667518,1705299051482,-635.08,0.00027397,2]
[311667519,1705299051492,-840.38,0.00027397,2]
[311667520,1705299051501,-1144.01,0.00027397,2]
[311667521,1705299051512,-508.59719473,0.00027397,2]
[311667522,1705299051521,-500.0,0.00027397,2]
[311667523,1705299051530,-503.86922741,0.00027397,2]
[311667524,1705299051540,-677.87,0.00027397,2]
[311667525,1705299051550,-509.56213012,0.00027397,2]
[311667526,1705299051559,-500.0,0.00027397,2]
[311667527,1705299051568,-500.0,0.00027397,2]
[311667528,1705299051577,-892.64,0.00027397,2]
[311667529,1705299051586,-509.20752249,0.00027397,2]
[311667530,1705299051596,-500.0,0.00027397,2]
[311667531,1705299051606,-508.65392728,0.00027397,2]
[311667532,1705299051616,-500.0,0.00027397,2]
[311667533,1705299051626,-1888.17,0.00027397,2]
[311667534,1705299051635,-500.0,0.00027397,2]
[311667535,1705299051644,-565.89900799,0.00027397,2]
[311667536,1705299051653,-500.0,0.00027397,2]
[311667537,1705299051663,-500.0,0.00027397,2]
[311667538,1705299051673,-500.0,0.00027397,2]
[311667539,1705299051683,-500.0,0.00027397,2]
[311667540,1705299051692,-505.43824664,0.00027397,2]
[311667541,1705299051701,-500.0,0.00027397,2]
[311667542,1705299051711,-500.0,0.00027397,2]
[311667543,1705299051720,-1035.12938664,0.00027397,30]
[311667544,1705299051730,-502.26675533,0.00027397,2]
[311667545,1705299051740,-500.0,0.00027397,2]
[311667546,1705299051749,-500.0,0.00027397,2]
[311667547,1705299051757,-526.48,0.00027397,2]
[311667548,1705299051766,-500.0,0.00027397,2]
[311667549,1705299051776,-500.0,0.00027397,2]
[311667550,1705299051786,-509.11120223,0.00027397,2]
[311667551,1705299051795,-500.0,0.00027397,2]
[311667552,1705299051807,-500.0,0.00027397,2]
[311667553,1705299051816,-503.30450492,0.00027397,2]
[311667554,1705299051825,-500.0,0.00027397,2]
[311667555,1705299051834,-500.0,0.00027397,2]
[311667556,1705299051843,-500.0,0.00027397,2]
[311667557,1705299051852,-500.0,0.00027397,2]
[311667558,1705299051861,-500.0,0.00027397,2]
[311667559,1705299051870,-508.24975907,0.00027397,2]
[311667560,1705299051879,-480.05387259,0.00027397,2]
[311667561,1705299051888,-500.0,0.00027397,2]
[311667562,1705299051898,-500.0,0.00027397,2]
[311667563,1705299051910,-500.0,0.00027397,2]
[311667564,1705299051919,-500.0,0.00027397,2]
[311667565,1705299051928,-500.0,0.00027397,2]
[311667566,1705299051938,-500.0,0.00027397,2]
[311667567,1705299051947,-500.0,0.00027397,2]
[311667568,1705299051957,-500.0,0.00027397,2]
[311667569,1705299051965,-500.0,0.00027397,2]
[311667570,1705299051975,-505.23,0.00027397,2]
[311667571,1705299051983,-500.0,0.00027397,2]
[311667572,1705299051994,-500.0,0.00027397,2]
[311667573,1705299052005,-500.0,0.00027397,2]
[311667574,1705299052016,-500.0,0.00027397,2]
[311667575,1705299052025,-500.0,0.00027397,2]
[311667576,1705299052034,-500.0,0.00027397,2]
[311667577,1705299052043,-1695.32,0.00027397,2]
[311667578,1705299052052,-709.42,0.00027397,2]
[311667579,1705299052061,-500.0,0.00027397,2]
[311667580,1705299052070,-500.0,0.00027397,2]
[311667581,1705299052079,-500.0,0.00027397,2]
[311667582,1705299052089,-500.0,0.00027397,2]
[311667583,1705299052098,-500.0,0.00027397,2]
[311667584,1705299052107,-500.0,0.00027397,2]
[311667585,1705299052116,-500.04455562,0.00027397,2]
[311667586,1705299052125,-181.04731766,0.00027397,2]
[311667587,1705299052135,-641.9,0.00027397,2]
[311667588,1705299052144,-834.61,0.00027397,2]
[311667589,1705299052153,-605.62,0.00027397,2]
[311667590,1705299052161,-500.0,0.00027397,2]
[311667591,1705299052171,-500.0,0.00027397,2]
[311667592,1705299052180,-500.0,0.00027397,2]
[311667593,1705299052189,-500.0,0.00027397,2]
[311667594,1705299052200,-601.61,0.00027397,2]
[311667595,1705299052210,-500.0,0.00027397,2]
[311667596,1705299052220,-500.0,0.00027397,2]
[311667597,1705299052229,-508.77927344,0.00027397,2]
[311667598,1705299052241,-599.89,0.00027397,2]
[311667599,1705299052250,-510.71729357,0.00027397,2]
[311667600,1705299052259,-500.0,0.00027397,2]
[311667601,1705299052268,-500.0,0.00027397,2]
[311667602,1705299052277,-500.0,0.00027397,2]
[311667603,1705299052286,-500.0,0.00027397,2]
[311667604,1705299052295,-500.0,0.00027397,2]
[311667605,1705299052304,-753.85,0.00027397,2]
[311667606,1705299052314,-500.0,0.00027397,2]
[311667607,1705299052323,-506.94119304,0.00027397,2]
[311667608,1705299052331,-500.0,0.00027397,2]
[311667609,1705299052340,-530.3,0.00027397,2]
[311667610,1705299052350,-525.36579754,0.00027397,2]
[311667611,1705299052358,-501.54204509,0.00027397,2]
[311667612,1705299052367,-513.82528642,0.00027397,2]
[311667613,1705299052378,-500.0,0.00027397,2]
[311667614,1705299052388,-513.05790518,0.00027397,10]
[311667615,1705299052398,-222.22090272,0.00027397,2]
[311667616,1705299052407,-624.01,0.00027397,2]
[311667617,1705299052416,-506.59656393,0.00027397,2]
[311667618,1705299052425,-501.92938673,0.00027397,2]
[311667619,1705299052435,-510.78668395,0.00027397,2]
[311667620,1705299052444,-500.0,0.00027397,2]
[311667621,1705299052453,-500.0,0.00027397,2]
[311667622,1705299052462,-502.87259039,0.00027397,2]
[311667623,1705299052471,-500.0,0.00027397,2]
[311667624,1705299052480,-629.58,0.00027397,2]
[311667625,1705299052492,-635.39,0.00027397,2]
[311667626,1705299052501,-500.0,0.00027397,2]
[311667627,1705299052510,-701.23,0.00027397,2]
[311667628,1705299052520,-508.18084,0.00027397,2]
[311667629,1705299052529,-736.71,0.00027397,2]
[311667630,1705299052539,-500.0,0.00027397,2]
[311667631,1705299052548,-500.0,0.00027397,2]
[311667632,1705299052558,-610.76865114,0.00027397,2]
[311667633,1705299052568,-201.56843239,0.00027397,2]
[311667634,1705299052577,-561.77,0.00027397,2]
[311667635,1705299052587,-504.09349334,0.00027397,2]
[311667636,1705299052596,-500.0,0.00027397,2]
[311667637,1705299052606,-500.0,0.00027397,2]
[311667638,1705299052616,-500.0,0.00027397,2]
[311667639,1705299052626,-500.0,0.00027397,2]
[311667640,1705299052636,-500.0,0.00027397,2]
[311667641,1705299052645,-500.0,0.00027397,2]
[311667642,1705299052655,-515.38356943,0.00027397,2]
[311667643,1705299052665,-500.0,0.00027397,2]
[311667644,1705299052675,-962.67,0.00027397,2]
[311667645,1705299052685,-500.0,0.00027397,2]
[311667646,1705299052694,-500.0,0.00027397,2]
[311667647,1705299052704,-509.92204347,0.00027397,2]
[311667648,1705299052714,-500.0,0.00027397,2]
[311667649,1705299052723,-802.81,0.00027397,2]
[311667650,1705299052733,-500.0,0.00027397,2]
[311667651,1705299052743,-546.19764875,0.00027397,2]
[311667652,1705299052753,-504.86960203,0.00027397,2]
[311667653,1705299052762,-504.22335854,0.00027397,2]
[311667654,1705299052771,-500.0,0.00027397,2]
[311667655,1705299052781,-501.3001951,0.00027397,2]
[311667656,1705299052790,-1048.79,0.00027397,2]
[311667657,1705299052800,-500.0,0.00027397,2]
[311667658,1705299052809,-500.0,0.00027397,2]
[311667659,1705299052819,-504.4535863,0.00027397,2]
[311667660,1705299052828,-500.0,0.00027397,2]
[311667661,1705299052838,-697.84,0.00027397,2]
[311667662,1705299052847,-500.0,0.00027397,2]
[311667663,1705299052857,-500.0,0.00027397,2]
[311667664,1705299052866,-590.88,0.00027397,2]
[311667665,1705299052876,-500.0,0.00027397,2]
[311667666,1705299052886,-500.0,0.00027397,2]
[311667667,1705299052895,-502.91741859,0.00027397,2]
[311667668,1705299052906,-500.0,0.00027397,2]
[311667669,1705299052916,-500.0,0.00027397,2]
[311667670,1705299052925,-500.0,0.00027397,2]
[311667671,1705299052934,-502.29320987,0.00027397,2]
[311667672,1705299052944,-500.0,0.00027397,2]
[311667673,1705299052954,-500.0,0.00027397,2]
[311667674,1705299052964,-500.0,0.00027397,2]
[311667675,1705299052974,-500.0,0.00027397,2]
[311667676,1705299052985,-560.50756945,0.00027397,2]
[311667677,1705299052994,-745.51,0.00027397,2]
[311667678,1705299053003,-500.0,0.00027397,2]
[311667679,1705299053013,-500.0,0.00027397,2]
[311667680,1705299053022,-500.0,0.00027397,2]
[311667681,1705299053031,-862.91,0.00027397,2]
[311667682,1705299053041,-500.0,0.00027397,2]
[311667683,1705299053051,-500.0,0.00027397,2]
[311667684,1705299053060,-500.0,0.00027397,2]
[311667685,1705299053070,-500.0,0.00027397,2]
[311667686,1705299053080,-500.0,0.00027397,2]
[311667687,1705299053089,-500.0,0.00027397,2]
[311667688,1705299053098,-500.0,0.00027397,2]
[311667689,1705299053107,-500.0,0.00027397,2]
[311667690,1705299053117,-513.73,0.00027397,2]
[311667691,1705299053126,-500.0,0.00027397,2]
[311667692,1705299053136,-596.68,0.00027397,2]
[311667693,1705299053145,-500.0,0.00027397,2]
[311667694,1705299053155,-500.0,0.00027397,2]
[311667695,1705299053166,-568.86,0.00027397,2]
[311667696,1705299053175,-500.0,0.00027397,2]
[311667697,1705299053185,-500.0,0.00027397,2]
[311667698,1705299053195,-502.07039429,0.00027397,2]
[311667699,1705299053205,-500.0,0.00027397,2]
[311667700,1705299053216,-1109.38,0.00027397,2]
[311667701,1705299053228,-500.0,0.00027397,2]
[311667702,1705299053238,-500.0,0.00027397,2]
[311667703,1705299053251,-500.0,0.00027397,2]
[311667704,1705299053260,-500.0,0.00027397,2]
[311667705,1705299053271,-509.71,0.00027397,2]
[311667706,1705299053280,-500.0,0.00027397,2]
[311667707,1705299053291,-526.29421582,0.00027397,30]
[311667708,1705299053301,-500.0,0.00027397,2]
[311667709,1705299053310,-514.12960891,0.00027397,2]
[311667710,1705299053320,-500.0,0.00027397,2]
[311667711,1705299053330,-503.51607959,0.00027397,2]
[311667712,1705299053340,-624.75,0.00027397,2]
[311667713,1705299053350,-500.0,0.00027397,2]
[311667714,1705299053360,-500.0,0.00027397,2]
[311667715,1705299053370,-753.75,0.00027397,2]
[311667716,1705299053380,-1012.67,0.00027397,2]
[311667717,1705299053391,-500.0,0.00027397,2]
[311667718,1705299053401,-502.16420535,0.00027397,2]
[311667719,1705299053412,-906.49,0.00027397,2]
[311667720,1705299053422,-500.0,0.00027397,2]
[311667721,1705299053431,-508.7067273,0.00027397,2]
[311667722,1705299053441,-500.0,0.00027397,2]
[311667723,1705299053450,-500.0,0.00027397,2]
[311667724,1705299053460,-501.22605155,0.00027397,2]
[311667725,1705299053469,-500.0,0.00027397,2]
[311667726,1705299053479,-600.41,0.00027397,2]
[311667727,1705299053489,-500.0,0.00027397,2]
[311667728,1705299053499,-500.0,0.00027397,2]
[311667729,1705299053509,-500.0,0.00027397,2]
[311667730,1705299053519,-500.0,0.00027397,2]
[311667731,1705299053529,-500.0,0.00027397,2]
[311667732,1705299053539,-504.41526161,0.00027397,2]
[311667733,1705299053549,-500.0,0.00027397,2]
[311667734,1705299053559,-1089.73,0.00027397,2]
[311667735,1705299053568,-624.2,0.00027397,2]
[311667736,1705299053578,-500.0,0.00027397,2]
[311667737,1705299053588,-504.23377299,0.00027397,2]
[311667738,1705299053598,-500.0,0.00027397,2]
[311667739,1705299053607,-500.0,0.00027397,2]
[311667740,1705299053616,-500.0,0.00027397,2]
[311667741,1705299053626,-500.0,0.00027397,2]
[311667742,1705299053635,-500.0,0.00027397,2]
[311667743,1705299053645,-500.0,0.00027397,2]
[311667744,1705299053654,-500.0,0.00027397,2]
[311667745,1705299053664,-242.62306509,0.00027397,2]
[311667746,1705299053674,-500.0,0.00027397,2]
[311667747,1705299053683,-500.0,0.00027397,2]
[311667748,1705299053693,-500.0,0.00027397,2]
[311667749,1705299053702,-500.0,0.00027397,2]
[311667750,1705299053712,-500.0,0.00027397,2]
[311667751,1705299053722,-500.0,0.00027397,2]
[311667752,1705299053736,-500.0,0.00027397,2]
[311667753,1705299053746,-502.96754115,0.00027397,2]
[311667754,1705299053755,-510.25129419,0.00027397,2]
[311667755,1705299053765,-1981.06,0.00027397,2]
[311667756,1705299053774,-611.45,0.00027397,2]
[311667757,1705299053784,-500.0,0.00027397,2]
[311667758,1705299053793,-500.0,0.00027397,2]
[311667759,1705299053803,-501.76169065,0.00027397,2]
[311667760,1705299053812,-500.0,0.00027397,2]
[311667761,1705299053822,-505.87165106,0.00027397,2]
[311667762,1705299053831,-519.94011446,0.00027397,2]
[311667763,1705299053841,-500.0,0.00027397,2]
[311667764,1705299053850,-500.0,0.00027397,2]
[311667765,1705299053861,-501.35200533,0.00027397,2]
[311667766,1705299053871,-500.0,0.00027397,2]
[311667767,1705299053880,-2427.5,0.00027397,2]
[311667768,1705299053891,-683.12,0.00027397,2]
[311667769,1705299053905,-925.27,0.00027397,2]
[311667770,1705299053925,-500.0,0.00027397,2]
[311667771,1705299053948,-914.84289308,0.00027397,2]
[311667772,1705299053961,-502.94682375,0.00027397,2]
[311667773,1705299053971,-5000.0,0.00027397,2]
[311667774,1705299053981,-214.90620788,0.00027397,2]
[311667775,1705299053992,-500.0,0.00027397,2]
[311667776,1705299054002,-500.0,0.00027397,2]
[311667777,1705299054012,-500.0,0.00027397,2]
[311667778,1705299054022,-500.0,0.00027397,2]
[311667779,1705299054033,-500.0,0.00027397,2]
[311667780,1705299054043,-500.0,0.00027397,2]
[311667781,1705299054052,-500.0,0.00027397,2]
[311667782,1705299054062,-500.0,0.00027397,2]
[311667783,1705299054071,-500.0,0.00027397,2]
[311667784,1705299054083,-503.12598248,0.00027397,2]
[311667785,1705299054094,-500.0,0.00027397,2]
[311667786,1705299054103,-500.0,0.00027397,2]
[311667787,1705299054113,-500.0,0.00027397,2]
[311667788,1705299054124,-505.4808774,0.00027397,2]
[311667789,1705299054134,-507.93326739,0.00027397,2]
[311667790,1705299054144,-500.0,0.00027397,2]
[311667791,1705299054154,-510.68287082,0.00027397,2]
[311667792,1705299054163,-500.0,0.00027397,2]
[311667793,1705299054173,-500.0,0.00027397,2]
[311667794,1705299054184,-500.0,0.00027397,2]
[311667795,1705299054193,-1376.56,0.00027397,2]
[311667796,1705299054204,-500.0,0.00027397,2]
[311667797,1705299054214,-3287.28,0.00027397,2]
[311667798,1705299054225,-500.0,0.00027397,2]
[311667799,1705299054235,-500.0,0.00027397,2]
[311667800,1705299054244,-500.0,0.00027397,2]
[311667801,1705299054254,-500.0,0.00027397,2]
[311667802,1705299054265,-500.0,0.00027397,2]
[311667803,1705299054276,-271.76,0.00027397,2]
[311667804,1705299054285,-502.30065404,0.00027397,2]
[311667805,1705299054296,-500.0,0.00027397,2]
[311667806,1705299054306,-500.0,0.00027397,2]
[311667807,1705299054316,-501.17,0.00027397,2]
[311667808,1705299054326,-500.0,0.00027397,2]
[311667809,1705299054336,-500.0,0.00027397,2]
[311667810,1705299054347,-500.0,0.00027397,2]
[311667811,1705299054357,-500.0,0.00027397,2]
[311667812,1705299054368,-500.0,0.00027397,2]
[311667813,1705299054378,-1626.28,0.00027397,2]
[311667814,1705299054388,-4511.36,0.00027397,2]
[311667815,1705299054399,-500.0,0.00027397,2]
[311667816,1705299054409,-513.72,0.00027397,2]
[311667817,1705299054421,-500.0,0.00027397,2]
[311667818,1705299054430,-505.8286944,0.00027397,2]
[311667819,1705299054440,-634.9,0.00027397,2]
[311667820,1705299054450,-500.0,0.00027397,2]
[311667821,1705299054460,-500.0,0.00027397,2]
[311667822,1705299054470,-500.0,0.00027397,2]
[311667823,1705299054480,-500.0,0.00027397,2]
[311667824,1705299054491,-500.0,0.00027397,2]
[311667825,1705299054501,-505.12996888,0.00027397,2]
[311667826,1705299054511,-500.0,0.00027397,2]
[311667827,1705299054521,-1701.05,0.00027397,2]
[311667828,1705299054532,-506.03977893,0.00027397,2]
[311667829,1705299054542,-500.0,0.00027397,2]
[311667830,1705299054552,-500.0,0.00027397,2]
[311667831,1705299054561,-500.0,0.00027397,2]
[311667832,1705299054571,-647.07,0.00027397,2]
[311667833,1705299054581,-500.0,0.00027397,2]
[311667834,1705299054591,-4347.27,0.00027397,2]
[311667835,1705299054601,-500.0,0.00027397,2]
[311667836,1705299054610,-977.0,0.00027397,2]
[311667837,1705299054620,-500.0,0.00027397,2]
[311667838,1705299054630,-500.0,0.00027397,2]
[311667839,1705299054640,-502.10842774,0.00027397,2]
[311667840,1705299054650,-500.0,0.00027397,2]
[311667841,1705299054660,-4137.16,0.00027397,2]
[311667842,1705299054670,-592.11,0.00027397,2]
[311667843,1705299054680,-511.46244174,0.00027397,2]
[311667844,1705299054690,-516.0,0.00027397,2]
[311667845,1705299054922,-500.0,0.00027397,2]
[311667846,1705299054931,-1297.98,0.00027397,2]
[311667847,1705299054941,-500.0,0.00027397,2]
[311667848,1705299054951,-500.0,0.00027397,2]
[311667849,1705299054962,-504.80150022,0.00027397,2]
[311667850,1705299054972,-500.0,0.00027397,2]
[311667851,1705299054984,-500.0,0.00027397,2]
[311667852,1705299054994,-702.81,0.00027397,2]
[311667853,1705299055004,-500.0,0.00027397,2]
[311667854,1705299055014,-501.80440724,0.00027397,2]
[311667855,1705299055023,-500.0,0.00027397,2]
[311667856,1705299055034,-8746.12,0.00027397,2]
[311667857,1705299055044,-500.0,0.00027397,2]
[311667858,1705299055053,-500.0,0.00027397,2]
[311667859,1705299055063,-1434.89,0.00027397,2]
[311667860,1705299055072,-500.0,0.00027397,2]
[311667861,1705299055081,-500.0,0.00027397,2]
[311667862,1705299055091,-500.0,0.00027397,2]
[311667863,1705299055102,-1179.22,0.00027397,2]
[311667864,1705299055113,-500.0,0.00027397,2]
[311667865,1705299055123,-500.0,0.00027397,2]
[311667866,1705299055134,-888.16,0.00027397,2]
[311667867,1705299055143,-500.0,0.00027397,2]
[311667868,1705299055154,-500.0,0.00027397,2]
[311667869,1705299055166,-500.0,0.00027397,2]
[311667870,1705299055176,-500.0,0.00027397,2]
[311667871,1705299055188,-697.63,0.00027397,2]
[311667872,1705299055200,-1006.0,0.00027397,2]
[311667873,1705299055210,-500.0,0.00027397,2]
[311667874,1705299055221,-500.0,0.00027397,2]
[311667875,1705299055231,-276.88290179,0.00027397,2]
[311667876,1705299055243,-665.5,0.00027397,2]
[311667877,1705299055253,-3133.54,0.00027397,2]
[311667878,1705299055264,-691.51,0.00027397,2]
[311667879,1705299055274,-500.0,0.00027397,2]
[311667880,1705299055284,-500.0,0.00027397,2]
[311667881,1705299055293,-500.84037928,0.00027397,2]
[311667882,1705299055302,-501.6891481,0.00027397,2]
[311667883,1705299055311,-604.12,0.00027397,2]
[311667884,1705299055320,-684.83,0.00027397,2]
[311667885,1705299055330,-500.0,0.00027397,2]
[311667886,1705299055339,-500.0,0.00027397,2]
[311667887,1705299055348,-500.0,0.00027397,2]
[311667888,1705299055358,-500.0,0.00027397,2]
[311667889,1705299055368,-500.0,0.00027397,2]
[311667890,1705299055377,-500.0,0.00027397,2]
[311667891,1705299055387,-500.0,0.00027397,2]
[311667892,1705299055396,-500.0,0.00027397,2]
[311667893,1705299055406,-850.72,0.00027397,2]
[311667894,1705299055416,-500.0,0.00027397,2]
[311667895,1705299055427,-2413.13,0.00027397,2]
[311667896,1705299055437,-1452.79,0.00027397,2]
[311667897,1705299055447,-500.0,0.00027397,2]
[311667898,1705299055457,-546.22,0.00027397,2]
[311667899,1705299055467,-500.0,0.00027397,2]
[311667900,1705299055476,-500.0,0.00027397,2]
[311667901,1705299055487,-500.0,0.00027397,2]
[311667902,1705299055496,-500.0,0.00027397,2]
[311667903,1705299055506,-500.0,0.00027397,2]
[311667904,1705299055515,-5421.42,0.00027397,2]
[311667905,1705299055524,-500.0,0.00027397,2]
[311667906,1705299055533,-515.15620904,0.00027397,2]
[311667907,1705299055542,-3627.86,0.00027397,2]
[311667908,1705299055553,-291.83831449,0.00027397,2]
[311667909,1705299055563,-501.00354874,0.00027397,2]
[311667910,1705299055573,-5376.31,0.00027397,2]
[311667911,1705299055583,-503.13769264,0.00027397,2]
[311667912,1705299055592,-1289.91,0.00027397,2]
[311667913,1705299055601,-500.0,0.00027397,2]
[311667914,1705299055611,-500.0,0.00027397,2]
[311667915,1705299055620,-1730.18,0.00027397,2]
[311667916,1705299055630,-500.0,0.00027397,2]
[311667917,1705299055639,-7593.01,0.00027397,2]
[311667918,1705299055649,-857.6,0.00027397,2]
[311667919,1705299055658,-500.0,0.00027397,2]
[311667920,1705299055668,-1295.22,0.00027397,2]
[311667921,1705299055678,-509.26107895,0.00027397,2]